bitfinex-derivatives/quotes_BTCF0:USTF0_20241208
["timestamp","ask_amount","ask_price","bid_price","bid_amount"]
[1733669803899,0.001,99811.0,99809.0,0.00350279]
[1733669804590,0.001,99811.0,99810.0,0.10018785]
[1733669804796,0.3608,99816.0,99810.0,0.10018785]
[1733669804997,7.449e-05,99820.0,99810.0,0.10018785]
[1733669805203,0.3608,99825.0,99815.0,0.045053]
[1733669805502,0.3608,99825.0,99816.0,0.0513]
[1733669805696,0.3608,99825.0,99818.0,0.045052]
[1733669805901,0.3608,99825.0,99816.0,0.0513]
[1733669805902,0.3608,99825.0,99819.0,0.045052]
[1733669806104,0.3608,99825.0,99820.0,7.449e-05]
[1733669806300,0.3608,99825.0,99820.0,0.1002533]
[1733669806809,0.04505,99824.0,99821.0,0.0503]
[1733669807507,0.04505,99824.0,99822.0,0.10017781]
[1733669808211,0.04505,99824.0,99823.0,0.0516]
[1733669808907,0.04505,99824.0,99823.0,0.15177731]
[1733669809805,0.32235,99825.0,99823.0,0.15177731]
[1733669810008,0.3608,99835.0,99827.0,0.045048]
[1733669810202,0.045045,99834.0,99824.0,0.00562258]
[1733669810410,0.045045,99834.0,99823.0,0.15177731]
[1733669810411,0.045045,99834.0,99829.0,0.045047]
[1733669810611,0.3608,99835.0,99825.0,0.10017681]
[1733669810806,0.045049,99826.0,99825.0,0.10017681]
[1733669811111,0.045049,99826.0,99825.0,0.00874609]
[1733669811906,0.045049,99826.0,99825.0,0.00313013]
[1733669813302,7.528e-05,99840.0,99825.0,0.00313013]
[1733669813303,0.045044,99837.0,99832.0,0.045046]
[1733669813504,0.045045,99834.0,99833.0,0.00313025]
[1733669813704,0.045045,99834.0,99826.0,0.045048]
[1733669813705,7.528e-05,99840.0,99826.0,0.045048]
[1733669813906,7.528e-05,99840.0,99827.0,0.00313016]
[1733669814102,7.528e-05,99840.0,99828.0,0.00313016]
[1733669814413,0.045049,99825.0,99823.0,0.0516]
[1733669814710,0.3608,99833.0,99824.0,0.00877796]
[1733669814907,0.045048,99829.0,99825.0,0.00877796]
[1733669815113,0.045048,99829.0,99826.0,0.04817923]
[1733669815411,0.045048,99829.0,99827.0,0.00313023]
[1733669815713,0.045048,99829.0,99828.0,0.00313023]
[1733669816410,0.046048,99829.0,99828.0,0.10330202]
[1733669817108,0.045048,99829.0,99828.0,0.10330202]
[1733669817308,0.047048,99829.0,99828.0,0.10330202]
[1733669817813,0.002,99829.0,99828.0,0.14835002]
[1733669818813,0.002,99829.0,99828.0,0.10330202]
[1733669819008,0.047047,99829.0,99828.0,0.10330202]
[1733669823009,0.13601702,99829.0,99828.0,0.10330202]
[1733669823206,0.047047,99829.0,99828.0,0.10330202]
[1733669824309,0.047047,99829.0,99828.0,0.00313023]
[1733669825510,0.002,99829.0,99828.0,0.14835002]
[1733669827003,0.08912462,99831.0,99828.0,0.48063535]
[1733669827315,0.08912462,99831.0,99830.0,0.045047]
[1733669827615,0.08912462,99831.0,99830.0,0.04817723]
[1733669827915,0.08912462,99831.0,99830.0,0.14834902]
[1733669828504,0.08912462,99831.0,99830.0,0.16081104]
[1733669828709,0.1184863,99836.0,99830.0,0.177289]
[1733669828922,0.1184863,99836.0,99835.0,0.045045]
[1733669829217,0.1184863,99836.0,99835.0,0.06465319]
[1733669829516,0.1184863,99836.0,99835.0,0.16482046]
[1733669830217,0.1184863,99836.0,99835.0,0.1483425]
[1733669831008,0.1204863,99836.0,99835.0,0.1483425]
[1733669831209,0.1244863,99836.0,99835.0,0.1483425]
[1733669833618,0.1244863,99836.0,99835.0,0.14834188]
[1733669833920,0.006,99836.0,99835.0,0.14834188]
[1733669834117,0.006,99836.0,99835.0,0.16474359]
[1733669835611,0.006,99836.0,99835.0,0.52554359]
[1733669836924,0.006,99836.0,99835.0,0.52241398]
[1733669837220,0.006,99836.0,99835.0,0.52554329]
[1733669838123,0.006,99836.0,99835.0,0.54519297]
[1733669839417,0.006,99836.0,99835.0,0.59719297]
[1733669840315,0.006,99836.0,99835.0,0.59406366]
[1733669840528,0.006,99836.0,99835.0,0.59719297]
[1733669842322,0.006,99836.0,99835.0,0.77681813]
[1733669843930,0.006,99836.0,99835.0,0.7768181]
[1733669844619,0.006,99836.0,99835.0,0.59719294]
[1733669847234,0.006,99836.0,99835.0,0.59406366]
[1733669847929,0.006,99836.0,99835.0,0.59719311]
[1733669848432,0.006,99836.0,99835.0,0.59406366]
[1733669849129,0.006,99836.0,99835.0,0.59719311]
[1733669849522,0.006,99836.0,99835.0,0.7767254]
[1733669850831,0.006,99836.0,99835.0,0.4159254]
[1733669851040,0.006,99836.0,99835.0,0.7767254]
[1733669851522,0.006,99836.0,99835.0,0.59719311]
[1733669853727,0.006,99836.0,99835.0,0.83689482]
[1733669854535,0.006,99836.0,99835.0,0.59719311]
[1733669855938,0.006,99836.0,99835.0,0.50014811]
[1733669856230,0.006,99836.0,99835.0,0.50016588]
[1733669856825,0.006,99836.0,99835.0,0.4837464]
[1733669857026,0.1244863,99836.0,99835.0,0.4837464]
[1733669857434,0.006,99836.0,99835.0,0.4837464]
[1733669859338,0.006,99836.0,99835.0,0.36392945]
[1733669859530,0.051044,99836.0,99835.0,0.183165]
[1733669859725,0.051044,99836.0,99835.0,0.00312945]
[1733669861639,0.09972735,99836.0,99835.0,0.00312945]
[1733669862334,0.045046,99831.0,99830.0,0.01246202]
[1733669862535,0.045046,99831.0,99829.0,0.045047]
[1733669862536,0.14875517,99831.0,99829.0,0.045047]
[1733669862732,0.150847,99830.0,99829.0,0.045047]
[1733669863038,0.150847,99830.0,99829.0,0.04817728]
[1733669863433,0.150847,99830.0,99829.0,0.14834807]
[1733669864227,0.150847,99830.0,99829.0,0.16119407]
[1733669864628,0.152847,99830.0,99829.0,0.16119407]
[1733669865837,0.152847,99830.0,99829.0,0.15806379]
[1733669866141,0.153847,99830.0,99829.0,0.16119408]
[1733669866443,0.27275424,99830.0,99829.0,0.16119408]
[1733669866638,0.1088,99830.0,99829.0,0.16119408]
[1733669866943,0.14498012,99830.0,99829.0,0.16119408]
[1733669867132,0.0558,99830.0,99829.0,0.16119408]
[1733669868335,0.0538,99830.0,99829.0,0.16119408]
[1733669868637,0.0528,99830.0,99829.0,0.16119408]
[1733669869039,0.0528,99830.0,99829.0,0.15806379]
[1733669869237,0.0528,99830.0,99829.0,0.1611939]
[1733669869443,0.0528,99830.0,99829.0,0.16119383]
[1733669870039,0.11890628,99838.0,99832.0,0.045046]
[1733669870538,0.11890628,99838.0,99833.0,0.00313004]
[1733669870738,0.11890628,99837.0,99834.0,0.00313004]
[1733669870947,0.11890628,99837.0,99835.0,0.00313004]
[1733669871136,0.11890628,99837.0,99836.0,0.00313004]
[1733669871446,0.045043,99838.0,99836.0,0.10329481]
[1733669871646,0.001,99838.0,99837.0,0.00313004]
[1733669871945,0.001,99838.0,99837.0,0.10329481]
[1733669872145,0.001,99838.0,99837.0,0.00313004]
[1733669872534,0.001,99838.0,99837.0,0.1032928]
[1733669872734,0.001,99838.0,99837.0,0.10329272]
[1733669873741,0.046043,99838.0,99837.0,0.10329272]
[1733669873945,0.048043,99838.0,99837.0,0.10329272]
[1733669874139,0.049043,99838.0,99837.0,0.10329272]
[1733669874345,0.046043,99838.0,99837.0,0.10329272]
[1733669874541,0.049043,99838.0,99837.0,0.10329272]
[1733669874944,0.001,99838.0,99837.0,0.14833672]
[1733669875143,0.004,99838.0,99837.0,0.16487807]
[1733669875547,0.003,99838.0,99837.0,0.16487807]
[1733669875747,0.004,99838.0,99837.0,0.16487807]
[1733669876147,0.004,99838.0,99837.0,0.16487792]
[1733669876352,0.003,99838.0,99837.0,0.16487792]
[1733669876559,0.001,99838.0,99837.0,0.16487792]
[1733669876849,0.004,99838.0,99837.0,0.16487792]
[1733669878752,0.003,99838.0,99837.0,0.16174811]
[1733669878959,0.004,99838.0,99837.0,0.16487781]
[1733669879748,0.004,99838.0,99837.0,0.14833646]
[1733669879945,0.004,99838.0,99837.0,0.16479767]
[1733669880758,0.004,99838.0,99837.0,0.34460181]
[1733669881150,0.004,99838.0,99837.0,0.16479767]
[1733669883250,0.004,99838.0,99837.0,0.16166797]
[1733669883449,0.004,99838.0,99837.0,0.16479747]
[1733669886756,0.004,99838.0,99837.0,0.16479748]
[1733669886957,0.004,99838.0,99837.0,0.16792699]
[1733669889353,0.004,99838.0,99837.0,0.14833627]
[1733669890056,0.004,99838.0,99837.0,0.14520676]
[1733669890254,0.004,99838.0,99837.0,0.14833642]
[1733669890464,0.004,99838.0,99837.0,0.16481732]
[1733669891663,0.004,99838.0,99837.0,0.14833642]
[1733669891859,0.004,99838.0,99837.0,0.3281218]
[1733669892260,0.004,99838.0,99837.0,0.14833642]
[1733669893266,0.004,99838.0,99837.0,0.14741477]
[1733669894765,0.09319487,99838.0,99837.0,0.14741477]
[1733669894967,0.004,99838.0,99837.0,0.14741477]
[1733669896266,0.004,99838.0,99837.0,0.01958916]
[1733669896267,0.049043,99838.0,99837.0,0.01958916]
[1733669896455,0.13837341,99838.0,99837.0,0.11975192]
[1733669896660,0.049043,99838.0,99837.0,0.11975192]
[1733669897462,0.049043,99838.0,99837.0,0.10329242]
[1733669898362,0.049043,99838.0,99837.0,0.11984237]
[1733669898570,0.049043,99838.0,99837.0,0.10329242]
[1733669898761,0.049043,99838.0,99837.0,0.11984026]
[1733669899264,0.049043,99838.0,99837.0,0.10329242]
[1733669900268,0.049043,99838.0,99837.0,0.10329271]
[1733669901574,0.049043,99838.0,99837.0,0.11985728]
[1733669902163,0.049043,99838.0,99837.0,0.10329271]
[1733669902360,0.049043,99838.0,99837.0,0.11986789]
[1733669902761,0.049043,99838.0,99837.0,0.10329271]
[1733669902971,0.049043,99838.0,99837.0,0.11985533]
[1733669903473,0.049043,99838.0,99837.0,0.11985992]
[1733669904278,0.049043,99838.0,99837.0,0.10329271]
[1733669907281,0.049043,99838.0,99837.0,0.11986239]
[1733669907475,0.049043,99838.0,99837.0,0.10329271]
[1733669907873,0.049043,99838.0,99837.0,0.11987705]
[1733669908175,0.004,99838.0,99837.0,0.34476758]
[1733669908480,0.004,99838.0,99837.0,0.16492105]
[1733669908878,0.09338348,99838.0,99837.0,0.16492105]
[1733669909178,0.004,99838.0,99837.0,0.1617911]
[1733669909480,0.09338348,99838.0,99837.0,0.34490468]
[1733669909674,0.09338348,99838.0,99837.0,0.16492069]
[1733669909875,0.09338348,99838.0,99837.0,0.34491086]
[1733669910474,0.09338348,99838.0,99837.0,0.16492069]
[1733669910677,0.09338348,99838.0,99837.0,0.34491494]
[1733669910877,0.09338348,99838.0,99837.0,0.34491619]
[1733669911985,0.004,99838.0,99837.0,0.16492069]
[1733669912885,0.004,99838.0,99837.0,0.52572069]
[1733669913084,7.528e-05,99840.0,99839.0,0.045043]
[1733669913379,7.528e-05,99840.0,99839.0,0.06475693]
[1733669913780,7.528e-05,99840.0,99839.0,0.16491969]
[1733669914280,0.00107528,99840.0,99839.0,0.16491969]
[1733669915477,0.00407528,99840.0,99839.0,0.16491969]
[1733669916974,0.00407528,99840.0,99839.0,0.17681076]
[1733669917179,0.00307528,99840.0,99839.0,0.17881076]
[1733669917384,0.00307528,99840.0,99839.0,0.17881061]
[1733669917579,7.528e-05,99840.0,99839.0,0.18381061]
[1733669917980,7.528e-05,99840.0,99839.0,0.18481061]
[1733669919077,7.528e-05,99840.0,99839.0,0.18168117]
[1733669919375,0.00107528,99840.0,99839.0,0.18481061]
[1733669919989,7.528e-05,99840.0,99839.0,0.42480589]
[1733669920190,7.528e-05,99840.0,99839.0,0.18481061]
[1733669920483,7.528e-05,99840.0,99839.0,0.23501061]
[1733669922085,7.528e-05,99840.0,99839.0,0.23001061]
[1733669922285,0.00107528,99840.0,99839.0,0.23501061]
[1733669922785,7.528e-05,99840.0,99839.0,0.23401061]
[1733669927587,7.528e-05,99840.0,99839.0,0.59481061]
[1733669933696,0.04511728,99840.0,99839.0,0.54976761]
[1733669933900,0.04511728,99840.0,99839.0,0.67754815]
[1733669934096,0.04511728,99840.0,99839.0,0.49756761]
[1733669934398,0.1642959,99840.0,99839.0,0.48098327]
[1733669934695,0.1642959,99840.0,99839.0,0.47785383]
[1733669934894,0.04511728,99840.0,99839.0,0.48098345]
[1733669935294,0.04511728,99840.0,99839.0,0.47998345]
[1733669935888,0.04511728,99840.0,99839.0,0.47898345]
[1733669936290,0.04511728,99840.0,99839.0,0.49548616]
[1733669936488,0.1642959,99840.0,99839.0,0.49548616]
[1733669936894,0.04511728,99840.0,99839.0,0.67354717]
[1733669937095,0.04511728,99840.0,99839.0,0.67454717]
[1733669937394,0.1642959,99840.0,99839.0,0.67454717]
[1733669937995,0.04511728,99840.0,99839.0,0.49448616]
[1733669938193,0.04511728,99840.0,99839.0,0.49135654]
[1733669938390,0.04511728,99840.0,99839.0,0.49448616]
[1733669939898,0.04511728,99840.0,99839.0,0.13368616]
[1733669941101,0.16440597,99840.0,99839.0,0.13368616]
[1733669941403,0.04511728,99840.0,99839.0,0.13368616]
[1733669945198,0.16439897,99840.0,99839.0,0.17872916]
[1733669946998,0.11935697,99840.0,99839.0,0.17872916]
[1733669947505,7.528e-05,99840.0,99839.0,0.17872916]
[1733669947701,7.528e-05,99840.0,99839.0,0.00512962]
[1733669947702,0.40591728,99840.0,99839.0,0.00512962]
[1733669947905,0.51631728,99840.0,99839.0,0.18519239]
[1733669948103,0.15551728,99840.0,99839.0,0.00512962]
[1733669948805,0.30427245,99840.0,99839.0,0.00512962]
[1733669949105,0.30456448,99840.0,99839.0,0.00512962]
[1733669949309,0.15551728,99840.0,99839.0,0.00512962]
[1733669949715,0.15551728,99840.0,99826.0,0.30517974]
[1733669949716,0.045051,99821.0,99820.0,0.21003018]
[1733669949921,0.045059,99802.0,99801.0,0.01]
[1733669950207,0.45454146,99802.0,99801.0,0.01677338]
[1733669950408,0.64188909,99802.0,99801.0,0.01677338]
[1733669950804,0.59683009,99802.0,99791.0,0.3272725]
[1733669951005,0.045064,99792.0,99791.0,0.3272725]
[1733669953210,0.049064,99792.0,99791.0,0.3272725]
[1733669953703,0.051064,99792.0,99791.0,0.3272725]
[1733669954199,0.14002887,99792.0,99791.0,0.33289263]
[1733669954399,0.14002887,99792.0,99791.0,0.3272725]
[1733669955110,0.051064,99792.0,99791.0,0.3272725]
[1733669962307,0.045066,99787.0,99786.0,0.11699549]
[1733669962508,0.045066,99787.0,99786.0,0.19993356]
[1733669963011,0.045066,99787.0,99786.0,0.30014249]
[1733669963708,0.406866,99787.0,99786.0,0.06]
[1733669964912,0.407866,99787.0,99786.0,0.06]
[1733669966216,0.3628,99787.0,99778.0,0.04507]
[1733669966412,0.04507,99779.0,99778.0,0.04507]
[1733669966607,0.04507,99779.0,99778.0,0.05381946]
[1733669966811,0.04507,99779.0,99778.0,0.23384421]
[1733669967618,0.04507,99779.0,99778.0,0.23484421]
[1733669967917,0.04507,99779.0,99778.0,0.24853972]
[1733669968104,0.04507,99779.0,99778.0,0.20346972]
[1733669968304,0.04507,99779.0,99778.0,0.20146972]
[1733669968504,0.04507,99779.0,99778.0,0.20346972]
[1733669969114,0.3708,99787.0,99778.0,0.20346972]
[1733669969316,0.01,99787.0,99786.0,0.045067]
[1733669970019,0.01,99787.0,99786.0,0.14528497]
[1733669970223,0.25260421,99821.0,99786.0,0.10021797]
[1733669970224,0.08896487,99794.0,99786.0,0.10021797]
[1733669970523,0.08896487,99794.0,99791.0,0.045064]
[1733669970711,0.08896487,99794.0,99792.0,0.045064]
[1733669970907,0.11876056,99798.0,99787.0,0.07980678]
[1733669971114,0.44952499,99799.0,99788.0,0.3608]
[1733669971419,0.3608,99799.0,99796.0,0.045062]
[1733669971723,0.3608,99799.0,99797.0,0.1153]
[1733669971926,0.3608,99799.0,99798.0,0.07980678]
[1733669972225,0.3628,99799.0,99798.0,0.07980678]
[1733669972614,0.3628,99799.0,99798.0,0.18000868]
[1733669973017,0.3628,99799.0,99798.0,0.22820081]
[1733669973018,0.005,99799.0,99798.0,0.22820081]
[1733669973215,0.11876056,99803.0,99798.0,0.18313981]
[1733669973418,0.0888372,99799.0,99798.0,0.23133184]
[1733669973617,0.0888372,99800.0,99798.0,0.1862708]
[1733669973819,0.0012372,99800.0,99799.0,0.045061]
[1733669974014,0.006,99799.0,99798.0,0.2313318]
[1733669974216,0.006,99799.0,99798.0,0.14783862]
[1733669974421,0.11876056,99807.0,99798.0,0.1831378]
[1733669974620,0.006,99799.0,99798.0,0.2281988]
[1733669974824,0.006,99799.0,99798.0,0.24491513]
[1733669975025,0.006,99799.0,99798.0,0.2281988]
[1733669975217,0.006,99799.0,99798.0,0.23132962]
[1733669975632,0.003,99803.0,99802.0,0.045059]
[1733669975818,0.003,99803.0,99802.0,0.04818982]
[1733669976019,0.11876056,99805.0,99804.0,0.045059]
[1733669976220,0.006,99807.0,99804.0,0.045059]
[1733669976221,0.006,99807.0,99804.0,0.04818982]
[1733669976426,0.006,99807.0,99806.0,0.045058]
[1733669976727,0.006,99807.0,99806.0,0.04818882]
[1733669976922,0.006,99807.0,99806.0,0.00313082]
[1733669977123,0.045057,99807.0,99806.0,0.00313082]
[1733669977421,0.09375214,99807.0,99806.0,0.10332569]
[1733669977827,0.10275214,99807.0,99806.0,0.10432569]
[1733669978523,0.23229236,99807.0,99806.0,0.10432569]
[1733669978730,0.10575214,99807.0,99806.0,0.10432569]
[1733669979030,0.10575214,99807.0,99806.0,0.001]
[1733669979328,0.10575214,99807.0,99806.0,0.00413096]
[1733669979922,0.04506,99801.0,99798.0,0.0597362]
[1733669980127,0.09375514,99800.0,99798.0,0.0597362]
[1733669980325,0.09375614,99799.0,99798.0,0.0597362]
[1733669980825,0.09375614,99799.0,99798.0,0.1599376]
[1733669981520,0.09375614,99799.0,99798.0,0.1609376]
[1733669981521,0.09975614,99799.0,99798.0,0.1609376]
[1733669981720,0.09975614,99799.0,99798.0,0.1158766]
[1733669981923,0.09975614,99799.0,99798.0,0.03255947]
[1733669982122,0.09975614,99799.0,99798.0,0.00413113]
[1733669982627,0.10275614,99799.0,99798.0,0.00413113]
[1733669982927,0.28047871,99799.0,99798.0,0.00413113]
[1733669983324,0.28047871,99799.0,99797.0,0.11462631]
[1733669983325,0.045061,99798.0,99797.0,0.11462631]
[1733669983625,0.27147871,99798.0,99797.0,0.11462631]
[1733669983826,0.045065,99790.0,99789.0,0.0039]
[1733669984038,0.045065,99790.0,99789.0,0.02056039]
[1733669984329,0.09376014,99790.0,99789.0,0.08370678]
[1733669985126,0.09676014,99790.0,99789.0,0.08370678]
[1733669985732,0.09776014,99790.0,99789.0,0.08370678]
[1733669986225,0.09776014,99790.0,99789.0,0.0039]
[1733669990032,0.27442668,99790.0,99789.0,0.0039]
[1733669990733,0.27442668,99790.0,99782.0,0.0577]
[1733669990734,0.22936168,99790.0,99782.0,0.0577]
[1733669990934,0.045068,99783.0,99782.0,0.0577]
[1733669991233,0.09376314,99783.0,99782.0,0.07418539]
[1733669991530,0.22332492,99783.0,99782.0,0.13750678]
[1733669991729,0.09376314,99783.0,99782.0,0.13750678]
[1733669994136,0.09377765,99783.0,99782.0,0.13750678]
[1733669994333,0.19361395,99783.0,99782.0,0.13750678]
[1733669994527,0.045068,99783.0,99782.0,0.13750678]
[1733669994929,0.19362368,99783.0,99782.0,0.13750678]
[1733669995432,0.045068,99783.0,99782.0,0.14063842]
[1733669995934,0.045069,99782.0,99781.0,0.05331527]
[1733669996531,0.045068,99783.0,99781.0,0.15353324]
[1733669996730,0.045069,99782.0,99781.0,0.15353324]
[1733669997031,0.16393006,99782.0,99781.0,0.1710076]
[1733669997238,0.16393006,99782.0,99781.0,0.15553324]
[1733669997239,0.045069,99782.0,99781.0,0.15553324]
[1733669997541,0.16393237,99782.0,99781.0,0.15553324]
[1733669997735,0.045069,99782.0,99781.0,0.15553324]
[1733670000229,0.14855568,99789.0,99781.0,0.20060224]
[1733670000540,0.11886648,99782.0,99781.0,0.20060224]
[1733670000839,0.11886648,99783.0,99781.0,0.20060224]
[1733670001037,0.11886648,99784.0,99782.0,0.3608]
[1733670001232,0.045065,99790.0,99782.0,0.3608]
[1733670001233,0.11886648,99785.0,99782.0,0.405868]
[1733670001633,0.11886648,99785.0,99783.0,0.10021546]
[1733670002232,0.14855568,99789.0,99783.0,0.10021546]
[1733670002433,0.14855568,99787.0,99783.0,0.10021546]
[1733670002839,0.19362168,99789.0,99783.0,0.10021546]
[1733670003041,0.19362168,99789.0,99784.0,0.045067]
[1733670003042,0.14855568,99789.0,99784.0,0.045067]
[1733670003337,0.14855568,99788.0,99784.0,0.045067]
[1733670003543,0.14855568,99788.0,99782.0,0.3608]
[1733670003836,0.1188914,99792.0,99783.0,0.01638929]
[1733670004039,0.1188914,99792.0,99782.0,0.3608]
[1733670004040,0.11889502,99795.0,99791.0,0.3608]
[1733670004242,0.11889502,99796.0,99794.0,0.045063]
[1733670004438,0.11889502,99796.0,99795.0,0.0527]
[1733670004739,0.11889502,99797.0,99796.0,0.045062]
[1733670005147,0.11889502,99798.0,99796.0,0.045062]
[1733670005342,0.11889502,99798.0,99796.0,0.14526742]
[1733670005541,0.11889502,99797.0,99796.0,0.14526742]
[1733670005845,0.11889502,99797.0,99796.0,0.50606742]
[1733670006040,0.11889502,99798.0,99796.0,0.50606742]
[1733670006343,0.03189502,99798.0,99796.0,0.50606742]
[1733670006538,0.3608,99811.0,99806.0,0.045058]
[1733670006732,0.04869566,99810.0,99806.0,0.045058]
[1733670006940,0.04869566,99810.0,99807.0,0.0575]
[1733670007339,0.04869566,99810.0,99807.0,0.15770341]
[1733670007936,0.04869566,99810.0,99808.0,0.00313098]
[1733670008131,0.009,99810.0,99809.0,0.045056]
[1733670008439,0.003,99811.0,99809.0,0.045056]
[1733670008639,0.003,99811.0,99810.0,0.00313098]
[1733670009054,0.22330492,99829.0,99810.0,0.00313098]
[1733670009341,0.045048,99829.0,99811.0,0.00313098]
[1733670009538,0.04868632,99828.0,99816.0,0.3608]
[1733670009736,0.53905692,99833.0,99825.0,0.045049]
[1733670009941,0.0486858,99832.0,99825.0,0.045049]
[1733670010243,0.0486858,99832.0,99817.0,0.01]
[1733670010435,0.04868599,99831.0,99825.0,0.045049]
[1733670010636,0.3608,99833.0,99826.0,0.10018032]
[1733670010839,0.04868597,99832.0,99826.0,0.04406575]
[1733670011138,0.007,99829.0,99827.0,0.1001758]
[1733670011536,0.007,99829.0,99828.0,0.0567]
[1733670012146,0.007,99829.0,99828.0,0.16000267]
[1733670012539,0.3608,99833.0,99828.0,0.16000267]
[1733670012741,0.045042,99841.0,99833.0,0.045045]
[1733670012939,0.045042,99841.0,99828.0,0.15687229]
[1733670013138,0.3608,99847.0,99838.0,0.045043]
[1733670013339,0.04868324,99846.0,99832.0,0.045046]
[1733670013538,0.04868324,99846.0,99829.0,0.10017179]
[1733670013539,0.3608,99836.0,99829.0,0.10017179]
[1733670013736,0.3608,99836.0,99834.0,0.045045]
[1733670014443,0.3608,99836.0,99835.0,0.10016426]
[1733670015541,0.3638,99836.0,99835.0,0.10016426]
[1733670015743,0.3638,99836.0,99832.0,0.001]
[1733670015938,0.045045,99833.0,99832.0,0.001]
[1733670016146,0.04505,99822.0,99821.0,0.01]
[1733670016450,0.3608,99822.0,99819.0,0.00925186]
[1733670016749,0.3608,99822.0,99810.0,0.01]
[1733670016750,0.3608,99822.0,99820.0,0.10017881]
[1733670016940,0.045051,99821.0,99820.0,0.10017881]
[1733670017143,0.045053,99817.0,99816.0,0.045053]
[1733670017342,0.045053,99817.0,99815.0,0.045054]
[1733670017645,0.045053,99817.0,99816.0,0.00313039]
[1733670017949,0.045053,99817.0,99815.0,0.045054]
[1733670018136,0.045053,99817.0,99816.0,0.10018433]
[1733670018842,0.045053,99817.0,99816.0,0.14523733]
[1733670019246,0.045053,99817.0,99816.0,0.045053]
[1733670019444,0.046053,99817.0,99816.0,0.14523683]
[1733670019946,0.045053,99817.0,99816.0,0.14523683]
[1733670020143,0.046053,99817.0,99816.0,0.14523683]
[1733670021546,0.001,99817.0,99816.0,0.14523683]
[1733670024148,0.001,99817.0,99816.0,0.14836747]
[1733670026859,0.001,99817.0,99816.0,0.14523683]
[1733670027052,0.001,99817.0,99816.0,0.14836737]
[1733670030850,0.001,99817.0,99816.0,0.14836735]
[1733670034846,0.001,99817.0,99816.0,0.00313052]
[1733670035155,0.046053,99817.0,99816.0,0.00313052]
[1733670035654,0.09474459,99817.0,99816.0,0.00313052]
[1733670035860,0.045059,99804.0,99792.0,0.01963065]
[1733670036061,0.09375757,99804.0,99803.0,0.00313103]
[1733670036957,0.27212132,99804.0,99803.0,0.00313103]
[1733670037260,0.27203795,99804.0,99803.0,0.007]
[1733670038155,0.09375757,99804.0,99803.0,0.007]
[1733670038858,0.09375757,99804.0,99803.0,0.002]
[1733670039060,0.09675757,99804.0,99803.0,0.002]
[1733670039560,0.045062,99796.0,99795.0,0.05434624]
[1733670039752,0.045062,99796.0,99795.0,0.05747757]
[1733670040849,0.045062,99796.0,99795.0,0.00313133]
[1733670041452,0.045062,99796.0,99795.0,0.00313135]
[1733670042272,0.3608,99797.0,99795.0,0.10333626]
[1733670042466,0.405862,99797.0,99796.0,0.04819335]
[1733670042754,0.3608,99797.0,99796.0,0.04819335]
[1733670043166,0.19340016,99800.0,99797.0,0.045062]
[1733670043352,0.19340016,99800.0,99796.0,0.10333526]
[1733670043353,0.14833916,99800.0,99798.0,0.00313135]
[1733670043548,0.14833916,99800.0,99799.0,0.0481924]
[1733670044359,0.23734266,99826.0,99806.0,0.045058]
[1733670044360,0.14833646,99813.0,99806.0,0.045058]
[1733670044558,0.20767483,99820.0,99806.0,0.405858]
[1733670044955,0.20767483,99820.0,99806.0,0.50605187]
[1733670045762,0.20767483,99820.0,99818.0,0.045052]
[1733670046468,0.20767483,99820.0,99818.0,0.14524587]
[1733670047559,0.3628,99819.0,99818.0,0.14524587]
[1733670048155,0.3638,99819.0,99818.0,0.14524587]
[1733670050062,0.3618,99819.0,99818.0,0.14524587]
[1733670050265,0.3628,99819.0,99818.0,0.14524587]
[1733670050466,0.3638,99819.0,99818.0,0.14524587]
[1733670050667,0.3638,99819.0,99818.0,0.15494636]
[1733670051264,0.3628,99819.0,99818.0,0.15494636]
[1733670051471,0.3638,99819.0,99818.0,0.15494636]
[1733670052567,0.3618,99819.0,99818.0,0.15494636]
[1733670052768,0.3638,99819.0,99818.0,0.15494636]
[1733670053778,0.3618,99819.0,99818.0,0.15494636]
[1733670054072,0.3638,99819.0,99818.0,0.15494636]
[1733670055363,0.003,99819.0,99818.0,0.15494636]
[1733670055569,0.003,99819.0,99818.0,0.15807688]
[1733670055771,0.001,99819.0,99818.0,0.15807688]
[1733670055970,0.003,99819.0,99818.0,0.15807688]
[1733670056275,0.002,99819.0,99818.0,0.15807688]
[1733670056476,0.003,99819.0,99818.0,0.15807688]
[1733670057176,0.002,99819.0,99818.0,0.15807688]
[1733670057378,0.003,99819.0,99818.0,0.15807688]
[1733670061487,0.3608,99833.0,99832.0,0.045046]
[1733670061989,0.3608,99833.0,99832.0,0.04817614]
[1733670062178,0.3608,99833.0,99832.0,0.14834392]
[1733670062383,0.3608,99845.0,99839.0,0.045043]
[1733670062687,0.04868347,99844.0,99839.0,0.04817314]
[1733670062984,0.17800699,99851.0,99839.0,0.50913389]
[1733670063293,0.052,99854.0,99839.0,0.50913389]
[1733670063984,0.052,99854.0,99839.0,0.51113389]
[1733670064184,0.410834,99859.0,99839.0,0.51113389]
[1733670064595,0.3658,99859.0,99839.0,0.51113389]
[1733670065795,0.3658,99859.0,99839.0,0.51861844]
[1733670066092,0.3658,99859.0,99839.0,0.52061844]
[1733670066293,0.3658,99859.0,99855.0,0.045035]
[1733670066513,0.3658,99859.0,99839.0,0.47557544]
[1733670066514,0.005,99877.0,99876.0,0.045026]
[1733670066786,0.58382199,99901.0,99885.0,0.045022]
[1733670066994,0.58382199,99901.0,99876.0,0.3608]
[1733670066995,0.045022,99886.0,99881.0,0.01]
[1733670067184,0.4175,99885.0,99876.0,0.10012365]
[1733670067488,0.4175,99885.0,99880.0,7.528e-05]
[1733670067795,0.462522,99885.0,99880.0,7.528e-05]
[1733670067994,0.045023,99884.0,99880.0,7.528e-05]
[1733670068399,0.4175,99885.0,99880.0,7.528e-05]
[1733670068590,0.4175,99885.0,99883.0,0.045023]
[1733670068987,0.0567,99885.0,99883.0,0.045023]
[1733670069191,0.0567,99885.0,99884.0,0.10011763]
[1733670069920,0.2807,99884.0,99838.0,0.36230236]
[1733670070090,0.045038,99849.0,99839.0,0.00312924]
[1733670070283,0.0555,99848.0,99844.0,0.04504]
[1733670070495,0.0555,99848.0,99845.0,0.04504]
[1733670070694,0.0555,99848.0,99838.0,0.40734536]
[1733670070987,0.100539,99848.0,99840.0,0.10015373]
[1733670071397,0.100539,99848.0,99838.0,0.41634536]